bitfinex-derivatives/quotes_BTCF0:USTF0_20250709
["timestamp","ask_amount","ask_price","bid_price","bid_amount"]
[1752071936363,1.51403064,108670.0,108660.0,0.0887019]
[1752071936660,1.51403064,108670.0,108660.0,0.26174317]
[1752071936853,1.51403064,108670.0,108660.0,0.06113837]
[1752071937051,0.1840348,108660.0,108650.0,0.10179138]
[1752071937254,1.37902074,108660.0,108650.0,0.10179138]
[1752071937462,1.56309274,108660.0,108650.0,0.10179138]
[1752071937663,1.38732404,108660.0,108650.0,0.10179138]
[1752071937966,1.19498594,108660.0,108650.0,0.28584318]
[1752071938173,1.37902084,108660.0,108650.0,0.29184318]
[1752071938462,1.37902084,108660.0,108650.0,0.1900518]
[1752071940268,1.52104764,108660.0,108650.0,0.1900518]
[1752071940963,1.70511964,108660.0,108650.0,0.006]
[1752071941266,0.1840518,108650.0,108640.0,0.230071]
[1752071941469,0.1840688,108640.0,108630.0,0.4048339]
[1752071941670,1.77691068,108640.0,108630.0,0.3588132]
[1752071941858,0.1840857,108630.0,108620.0,0.11032006]
[1752071942059,2.17744794,108630.0,108620.0,0.08264751]
[1752071942258,2.13142284,108630.0,108620.0,0.08264751]
[1752071942468,1.6395188,108630.0,108620.0,0.1841026]
[1752071942769,1.83149594,108630.0,108620.0,0.1841026]
[1752071942965,1.82149594,108630.0,108620.0,0.1841026]
[1752071943163,0.3608,108630.0,108620.0,0.2067626]
[1752071943463,0.3608,108630.0,108620.0,0.37028874]
[1752071943966,0.3608,108630.0,108620.0,0.34762874]
[1752071944169,0.3618,108630.0,108620.0,0.35162874]
[1752071945068,0.3618,108630.0,108620.0,0.37428874]
[1752071945568,0.3618,108630.0,108620.0,0.77414468]
[1752071945964,0.5038268,108630.0,108620.0,0.77414468]
[1752071946267,0.1430268,108630.0,108620.0,0.77414468]
[1752071946470,0.1430268,108630.0,108620.0,0.77614468]
[1752071946666,0.5038268,108630.0,108620.0,0.77614468]
[1752071946867,0.1430268,108630.0,108620.0,0.77614468]
[1752071947072,0.5038268,108630.0,108620.0,0.37628874]
[1752071947272,0.5038268,108630.0,108620.0,0.86942614]
[1752071947473,0.6879125,108630.0,108620.0,0.84676614]
[1752071947675,0.7507125,108630.0,108620.0,0.84676614]
[1752071947974,0.7658625,108630.0,108620.0,0.86333614]
[1752071948174,0.5817768,108630.0,108620.0,0.37019874]
[1752071948670,0.1430268,108630.0,108620.0,1.46987468]
[1752071949070,0.1430268,108630.0,108620.0,1.87145717]
[1752071949269,0.1430268,108630.0,108620.0,1.59310967]
[1752071951478,0.1430268,108630.0,108620.0,1.51065717]
[1752071951981,0.1430268,108630.0,108620.0,1.62056726]
[1752071952375,0.1430268,108630.0,108620.0,0.94340726]
[1752071952580,0.5038268,108630.0,108620.0,1.19303599]
[1752071952781,0.5360268,108630.0,108620.0,1.19303599]
[1752071953680,0.8974268,108630.0,108620.0,0.46341599]
[1752071953877,0.5674268,108630.0,108620.0,1.14033599]
[1752071954273,0.5674268,108630.0,108620.0,1.16299599]
[1752071954479,0.5674268,108630.0,108620.0,1.19489599]
[1752071954781,0.5674268,108630.0,108620.0,1.08945736]
[1752071954969,1.52136844,108630.0,108620.0,0.22843476]
[1752071955173,1.52136844,108630.0,108620.0,0.08843476]
[1752071956283,1.59472822,108630.0,108620.0,0.006]
[1752071957371,1.19487228,108630.0,108620.0,0.1901027]
[1752071957577,1.59472822,108630.0,108620.0,0.006]
[1752071957780,1.59472822,108630.0,108620.0,0.1901027]
[1752071958279,1.61850822,108630.0,108620.0,0.1901027]
[1752071959488,2.29514822,108630.0,108620.0,0.1901027]
[1752071959879,1.89529228,108630.0,108620.0,0.1901027]
[1752071960184,2.29514822,108630.0,108620.0,0.1901027]
[1752071960484,2.29514822,108630.0,108620.0,0.006]
[1752071960886,2.29514822,108630.0,108620.0,0.1901027]
[1752071961086,2.29514822,108630.0,108620.0,0.006]
[1752071961984,2.47926822,108630.0,108620.0,0.006]
[1752071962281,0.1841196,108610.0,108600.0,0.3604645]
[1752071962492,0.1841196,108610.0,108600.0,0.18596334]
[1752071962493,1.69145554,108610.0,108600.0,0.18596334]
[1752071962779,1.77849554,108610.0,108600.0,0.00184154]
[1752071963185,1.78849554,108610.0,108600.0,0.00184154]
[1752071963485,2.46501554,108610.0,108600.0,0.00384154]
[1752071964184,0.80038,108610.0,108600.0,0.20345814]
[1752071964386,0.73748,108610.0,108600.0,0.3160929]
[1752071964579,0.7216,108610.0,108600.0,0.68836408]
[1752071964779,0.001,108610.0,108600.0,0.69136408]
[1752071965085,0.3618,108610.0,108600.0,0.69136408]
[1752071965283,0.1430268,108610.0,108600.0,0.77379884]
[1752071966481,0.3608,108640.0,108610.0,0.0460262]
[1752071966683,0.5448688,108640.0,108630.0,0.58394164]
[1752071966885,0.54449816,108640.0,108630.0,0.1840857]
[1752071967085,0.54449816,108640.0,108630.0,0.2088357]
[1752071967282,0.54449816,108640.0,108620.0,0.54696935]
[1752071967483,0.5448857,108630.0,108620.0,0.91511497]
[1752071967685,0.5763857,108630.0,108620.0,0.91507497]
[1752071968187,0.5763857,108630.0,108620.0,0.73097797]
[1752071968374,0.5763857,108630.0,108620.0,0.23880067]
[1752071968375,0.3923,108630.0,108620.0,0.23880067]
[1752071968579,0.3923,108630.0,108620.0,0.91504067]
[1752071968785,0.6071857,108630.0,108620.0,0.32140703]
[1752071968987,0.6071857,108630.0,108620.0,0.99764703]
[1752071969190,0.6081857,108630.0,108620.0,0.81454433]
[1752071969384,1.00804164,108630.0,108620.0,0.81454433]
[1752071969693,1.61215964,108630.0,108620.0,0.08360636]
[1752071970487,1.61215964,108630.0,108620.0,0.08460636]
[1752071970488,1.61515964,108630.0,108620.0,0.08460636]
[1752071970686,1.61515964,108630.0,108620.0,0.002]
[1752071971484,1.79927964,108630.0,108620.0,0.002]
[1752071973086,1.79927964,108630.0,108620.0,0.186103]
[1752071973283,1.3994237,108630.0,108620.0,0.186103]
[1752071973479,1.2094237,108630.0,108620.0,0.002]
[1752071973792,1.60927964,108630.0,108620.0,0.186103]
[1752071976794,2.28515964,108630.0,108620.0,0.186103]
[1752071977090,1.7011041,108630.0,108620.0,0.201583]
[1752071977283,1.7011041,108630.0,108620.0,0.186103]
[1752071977483,2.10096004,108630.0,108620.0,0.186103]
[1752071978596,2.10096004,108630.0,108620.0,0.002]
[1752071980298,1.7011041,108630.0,108620.0,0.002]
[1752071980496,2.10096004,108630.0,108620.0,0.002]
[1752071983803,1.0011641,108630.0,108620.0,0.01748]
[1752071984001,1.6766441,108630.0,108620.0,0.01748]
[1752071984208,1.8066441,108630.0,108620.0,0.01748]
[1752071984708,1.8066441,108630.0,108620.0,0.62618894]
[1752071984709,0.564778,108630.0,108620.0,0.62618894]
[1752071985006,0.580658,108630.0,108620.0,0.290333]
[1752071985205,0.580658,108630.0,108620.0,0.37293936]
[1752071985401,0.7647441,108630.0,108620.0,0.37293936]
[1752071987409,1.1347441,108630.0,108620.0,0.37293936]
[1752071987605,0.7647441,108630.0,108620.0,0.37293936]
[1752071988309,1.1147441,108630.0,108620.0,0.34818936]
[1752071988504,1.1657441,108630.0,108620.0,0.34818936]
[1752071988711,1.56560004,108630.0,108620.0,0.34818936]
[1752071988900,1.56560004,108630.0,108620.0,0.13138636]
[1752071988901,1.54560004,108630.0,108620.0,0.13138636]
[1752071989109,1.54560004,108630.0,108620.0,0.31548976]
[1752071989299,0.8269441,108630.0,108620.0,0.31548976]
[1752071989500,1.1769441,108630.0,108620.0,0.31548976]
[1752071990214,0.992858,108630.0,108620.0,0.31548976]
[1752071991301,0.642858,108630.0,108620.0,0.31548976]
[1752071992022,0.611658,108630.0,108620.0,0.33935976]
[1752071992206,0.564778,108630.0,108620.0,0.7698157]
[1752071992507,0.203978,108630.0,108620.0,1.1198157]
[1752071992711,0.104178,108630.0,108620.0,1.94203943]
[1752071993111,0.104178,108630.0,108620.0,1.83212934]
[1752071993513,0.08220636,108630.0,108620.0,1.96878949]
[1752071994319,0.08220636,108630.0,108620.0,1.96778949]
[1752071994612,0.08320636,108630.0,108620.0,1.97178949]
[1752071995116,0.08220636,108630.0,108620.0,1.96778949]
[1752071995308,0.08020636,108630.0,108620.0,1.80452934]
[1752071995511,0.08020636,108630.0,108620.0,1.80652934]
[1752071995706,0.08020636,108630.0,108620.0,1.94318949]
[1752071996413,0.08020636,108630.0,108620.0,2.61786949]
[1752071996614,0.08020636,108630.0,108620.0,3.11786949]
[1752071997216,0.08020636,108630.0,108620.0,2.44318949]
[1752071997417,0.08020636,108630.0,108620.0,2.98120934]
[1752071997813,0.03418256,108630.0,108620.0,3.11786949]
[1752071998021,6e-08,108630.0,108620.0,3.11774949]
[1752071998410,6e-08,108630.0,108620.0,4.39082949]
[1752071999006,6e-08,108630.0,108620.0,4.25416934]
[1752071999213,6e-08,108630.0,108620.0,3.57960934]
[1752071999516,6e-08,108630.0,108620.0,4.25412934]
[1752071999817,0.36093758,108650.0,108640.0,0.20305765]
[1752071999818,4e-08,108650.0,108640.0,0.20305765]
[1752072000013,0.3604294,108670.0,108660.0,0.1840357]
[1752072000209,0.3905294,108670.0,108660.0,1.35373514]
[1752072000417,0.3905294,108670.0,108660.0,0.3125392]
[1752072000418,0.4070094,108670.0,108660.0,0.3125392]
[1752072000619,1.38678414,108670.0,108660.0,0.13753376]
[1752072000914,1.38678414,108670.0,108660.0,0.0051135]
[1752072001122,0.1840357,108660.0,108640.0,1.55192591]
[1752072001325,0.9221326,108650.0,108640.0,1.45989211]
[1752072001527,0.76918,108650.0,108640.0,1.46002969]
[1752072001708,0.40838,108650.0,108640.0,1.20943563]
[1752072002022,0.3919,108650.0,108640.0,1.88371563]
[1752072002321,0.3608,108650.0,108640.0,1.44701563]
[1752072002526,0.3608,108650.0,108640.0,1.51911647]
[1752072003020,0.3919,108660.0,108650.0,0.1840526]
[1752072003220,0.7727,108660.0,108650.0,0.2005726]
[1752072003419,0.78918,108660.0,108650.0,0.2005726]
[1752072003826,1.10918,108660.0,108650.0,0.2005726]
[1752072004016,1.14188,108660.0,108650.0,0.2005726]
[1752072005221,1.341858,108660.0,108650.0,0.2005726]
[1752072005725,1.341858,108660.0,108650.0,0.20933529]
[1752072006020,1.342858,108660.0,108650.0,0.20933529]
[1752072006409,1.072858,108660.0,108650.0,0.20933529]
[1752072006816,1.022678,108660.0,108650.0,0.21033529]
[1752072007015,0.591878,108660.0,108650.0,0.63406123]
[1752072007419,0.645658,108660.0,108650.0,0.63506123]
[1752072007621,0.645658,108660.0,108650.0,0.61119123]
[1752072007919,0.645658,108660.0,108650.0,0.21133529]
[1752072008521,0.645658,108660.0,108650.0,0.29385555]
[1752072009416,0.995658,108660.0,108650.0,0.29385555]
[1752072009618,0.985658,108660.0,108650.0,0.96777555]
[1752072009920,0.645658,108660.0,108650.0,0.96777555]
[1752072010921,1.005658,108660.0,108650.0,0.96777555]
[1752072011114,1.005658,108660.0,108650.0,0.95901286]
[1752072011311,1.005658,108660.0,108650.0,0.28509286]
[1752072011517,1.005658,108660.0,108650.0,0.95889286]
[1752072011721,1.005658,108660.0,108650.0,0.95877286]
[1752072012219,1.61294994,108660.0,108650.0,0.8762126]
[1752072012420,0.1840529,108650.0,108640.0,0.10164589]
[1752072012611,1.38398884,108650.0,108640.0,0.00184589]
[1752072012818,0.1840699,108640.0,108630.0,0.230105]
[1752072013017,1.32472584,108640.0,108630.0,0.1840841]
[1752072013220,1.99832584,108640.0,108630.0,0.1840841]
[1752072013526,0.7408,108640.0,108630.0,0.2006041]
[1752072014524,0.7418,108640.0,108630.0,0.2046041]
[1752072015226,0.941778,108640.0,108630.0,0.2046041]
[1752072015923,1.2302278,108640.0,108630.0,0.1880841]
[1752072016532,1.046158,108640.0,108630.0,0.2046041]
[1752072017620,1.2302278,108640.0,108630.0,0.2046041]
[1752072017927,1.046158,108640.0,108630.0,0.2046041]
[1752072018119,0.974778,108640.0,108630.0,0.62833004]
[1752072018322,0.594778,108640.0,108630.0,0.2284741]
[1752072018529,0.594778,108640.0,108630.0,0.62833004]
[1752072018530,0.611258,108640.0,108630.0,0.62833004]
[1752072018726,0.8276279,108640.0,108630.0,0.2046041]
[1752072018927,1.013558,108640.0,108630.0,0.8779241]
[1752072019330,0.643558,108640.0,108630.0,0.8779241]
[1752072019529,0.993558,108640.0,108630.0,0.2046041]
[1752072020321,0.983558,108640.0,108630.0,0.2046041]
[1752072020525,0.723558,108640.0,108630.0,0.2046041]
[1752072020725,0.723558,108640.0,108630.0,0.62794004]
[1752072021021,0.200978,108640.0,108630.0,0.62794004]
[1752072021227,0.200978,108640.0,108630.0,0.68934004]
[1752072021423,0.200978,108640.0,108630.0,0.2894841]
[1752072021622,0.200978,108640.0,108630.0,0.68934004]
[1752072022325,0.200978,108640.0,108630.0,0.79936799]
[1752072024935,0.232778,108640.0,108630.0,0.79936799]
[1752072025132,0.200978,108640.0,108630.0,0.81866675]
[1752072025328,0.200978,108640.0,108630.0,1.4094388]
[1752072025528,0.200978,108640.0,108630.0,1.0486388]
[1752072025728,0.200978,108640.0,108630.0,1.4094388]
[1752072026035,0.200978,108640.0,108630.0,1.51965603]
[1752072026232,0.200978,108640.0,108630.0,1.4094388]
[1752072028238,0.200978,108640.0,108630.0,1.51965753]
[1752072028734,0.200978,108640.0,108630.0,1.4094388]
[1752072029436,0.02283758,108670.0,108660.0,0.1840362]
[1752072029437,0.36093758,108670.0,108660.0,0.1840362]
[1752072029636,0.37594758,108670.0,108660.0,1.61674214]
[1752072029828,0.00013758,108670.0,108660.0,1.36044214]
[1752072030032,0.36093758,108670.0,108660.0,1.36044214]
[1752072030239,0.37594758,108670.0,108660.0,1.36044214]
[1752072030539,0.39253758,108670.0,108660.0,1.36044214]
[1752072030734,0.40754758,108670.0,108660.0,0.1840362]
[1752072030939,0.44434758,108670.0,108660.0,0.8743262]
[1752072031142,0.39853758,108670.0,108660.0,1.29766214]
[1752072031439,0.39853758,108670.0,108660.0,1.36136214]
[1752072032332,0.41354758,108670.0,108660.0,1.41644768]
[1752072032538,0.59951558,108670.0,108660.0,1.41644768]
[1752072032838,0.59951558,108670.0,108660.0,1.49907599]
[1752072033039,0.61452558,108670.0,108660.0,1.41644768]
[1752072033239,0.61452558,108670.0,108660.0,1.49907599]
[1752072033540,1.61300082,108670.0,108660.0,0.13871385]
[1752072033743,1.60300082,108670.0,108660.0,0.13871385]
[1752072033936,1.60300082,108670.0,108660.0,0.24012174]
[1752072034140,1.41898152,108670.0,108660.0,0.24012174]
[1752072034836,1.20314488,108670.0,108660.0,0.24012174]
[1752072035033,1.60300082,108670.0,108660.0,0.24012174]
[1752072035441,1.41898152,108670.0,108660.0,0.24012174]
[1752072035635,1.41898152,108670.0,108660.0,0.32275005]
[1752072036033,1.42898152,108670.0,108660.0,0.32275005]
[1752072036242,0.66912558,108670.0,108660.0,0.33932005]
[1752072036432,1.02912558,108670.0,108660.0,0.32275005]
[1752072036641,0.71141558,108670.0,108660.0,0.70757045]
[1752072036938,0.61452558,108670.0,108660.0,0.73897045]
[1752072037149,0.56791558,108670.0,108660.0,0.68834214]
[1752072037438,0.56791558,108670.0,108660.0,0.77092765]
[1752072037837,0.56791558,108670.0,108660.0,0.77093014]
[1752072038035,0.56791558,108670.0,108660.0,0.68834214]
[1752072038336,0.20711558,108670.0,108660.0,0.68834214]
[1752072038535,0.56791558,108670.0,108660.0,0.68834214]
[1752072038746,0.20711558,108670.0,108660.0,0.68834214]
[1752072038947,0.56791558,108670.0,108660.0,0.77091441]
[1752072039240,0.58292558,108670.0,108660.0,0.77090505]
[1752072039439,0.56791558,108670.0,108660.0,0.77090505]
[1752072039635,0.58292558,108670.0,108660.0,0.77090505]
[1752072041940,0.22212558,108670.0,108660.0,0.77090505]
[1752072042547,0.58292558,108670.0,108660.0,0.26759911]
[1752072042745,1.41958152,108670.0,108660.0,0.32262344]
[1752072042942,1.60360082,108670.0,108660.0,0.05602433]
[1752072043147,1.60360082,108670.0,108660.0,0.24006053]
[1752072043444,1.60360082,108670.0,108660.0,0.32262344]
[1752072043645,1.60360082,108670.0,108660.0,0.24006053]
[1752072043943,1.60360082,108670.0,108660.0,0.91222053]
[1752072044147,1.20374488,108670.0,108660.0,0.91214053]
[1752072044341,1.60360082,108670.0,108660.0,0.99470344]
[1752072044648,1.41958152,108670.0,108660.0,0.99470344]
[1752072044847,1.01972558,108670.0,108660.0,0.99470344]
[1752072045238,1.01972558,108670.0,108660.0,0.91214053]
[1752072045949,1.01972558,108670.0,108660.0,0.92871053]
[1752072046147,1.01972558,108670.0,108660.0,0.91214053]
[1752072046537,1.01972558,108670.0,108660.0,0.8571162]
[1752072046939,1.01972558,108670.0,108660.0,0.8736862]
[1752072047141,1.01972558,108670.0,108660.0,0.8571162]
[1752072047348,1.20374478,108670.0,108660.0,0.8571162]
[1752072047846,1.01972558,108670.0,108660.0,0.8570362]
[1752072048255,1.20374478,108670.0,108660.0,0.8570362]
[1752072048453,1.20374478,108670.0,108660.0,0.93959911]
[1752072049149,0.66972558,108670.0,108660.0,0.93959911]
[1752072049544,1.06958152,108670.0,108660.0,0.93959911]
[1752072049748,0.66972558,108670.0,108660.0,0.93959911]
[1752072049942,0.64702558,108670.0,108660.0,0.95616911]
[1752072050249,0.64702558,108670.0,108660.0,0.93959911]
[1752072050457,0.85561488,108670.0,108660.0,0.26759911]
[1752072050659,1.25547082,108670.0,108660.0,0.08356291]
[1752072050958,1.25547082,108670.0,108660.0,0.001]
[1752072051646,1.25547082,108670.0,108660.0,0.1850362]
[1752072051841,1.28800187,108670.0,108660.0,0.1850362]
[1752072052255,0.70412663,108670.0,108660.0,0.1850362]
[1752072052558,1.10398257,108670.0,108660.0,0.1850362]
[1752072052757,0.67159558,108670.0,108660.0,0.1850362]
[1752072053457,1.25547082,108670.0,108660.0,0.1850362]
[1752072053652,1.34327558,108670.0,108660.0,0.1850362]
[1752072054253,1.52729488,108670.0,108660.0,0.1850362]
[1752072055251,1.52729488,108670.0,108660.0,0.2012662]
[1752072055756,0.85561488,108670.0,108660.0,0.2012662]
[1752072055954,0.67159558,108670.0,108660.0,0.2012662]
[1752072056158,1.34319558,108670.0,108660.0,0.2012662]
[1752072056360,1.30361558,108670.0,108660.0,0.2012662]
[1752072056749,0.63201558,108670.0,108660.0,0.28382911]
[1752072056955,0.59961558,108670.0,108660.0,0.70724505]
[1752072057255,0.79920478,108670.0,108660.0,0.08356291]
[1752072057455,1.25427072,108670.0,108660.0,0.001]
[1752072057654,0.85441478,108670.0,108660.0,0.001]
[1752072057854,1.25427072,108670.0,108660.0,0.001]
[1752072058862,1.28685416,108670.0,108660.0,0.001]
[1752072059257,1.25427072,108670.0,108660.0,0.1850362]
[1752072059756,1.25427072,108670.0,108660.0,0.001]
[1752072059961,1.25427072,108670.0,108660.0,0.1850362]
[1752072060161,1.28685632,108670.0,108660.0,0.001]
[1752072060463,1.95829632,108670.0,108660.0,0.1850362]
[1752072060767,1.55844048,108670.0,108660.0,0.2012662]
[1752072060957,0.58348558,108670.0,108660.0,0.62468214]
[1752072061157,0.58348558,108670.0,108660.0,1.44314505]
[1752072061461,0.56791558,108670.0,108660.0,1.44314505]
[1752072061862,0.20711558,108670.0,108660.0,1.45314505]
[1752072062067,0.20711558,108670.0,108660.0,1.36058214]
[1752072062264,0.20711558,108670.0,108660.0,1.45058214]
[1752072062462,0.20711558,108670.0,108660.0,1.56078772]
[1752072062665,0.20711558,108670.0,108660.0,1.48078772]
[1752072063461,0.20711558,108670.0,108660.0,1.66483572]
[1752072063654,0.20711558,108670.0,108660.0,2.89528608]
[1752072063655,0.10008268,108670.0,108660.0,2.89528608]
[1752072063857,0.3926,108710.0,108700.0,0.1839686]
[1752072064053,0.3926,108710.0,108700.0,0.60005454]
[1752072064361,0.3608,108710.0,108700.0,0.67873174]
[1752072064556,0.3608,108710.0,108700.0,0.70913174]
[1752072064769,0.37637,108710.0,108700.0,0.70913174]
[1752072065159,0.38837,108710.0,108700.0,0.65501454]
[1752072065655,0.38437,108710.0,108700.0,0.71013174]
[1752072065854,0.02357,108710.0,108700.0,0.74633782]
[1752072066560,0.38637,108710.0,108700.0,0.74633782]
[1752072066863,0.586348,108710.0,108700.0,0.83285576]
[1752072067061,0.618048,108710.0,108700.0,0.75017996]
[1752072067654,1.20185564,108710.0,108700.0,0.05601794]
[1752072067862,0.650848,108710.0,108700.0,0.27977654]
[1752072068162,0.570778,108710.0,108700.0,0.71013248]
[1752072068367,0.570778,108710.0,108700.0,0.74093248]
[1752072068959,0.570778,108710.0,108700.0,1.74832689]
[1752072068960,0.1536704,108710.0,108700.0,1.74832689]
[1752072069165,0.1536704,108710.0,108700.0,1.69337433]
[1752072069871,0.1536704,108710.0,108700.0,2.39177293]
[1752072071268,0.1536704,108710.0,108700.0,2.39277293]
[1752072071470,0.1536704,108710.0,108700.0,2.39477293]
[1752072072060,0.1536704,108710.0,108700.0,2.89477293]
[1752072073174,0.1536704,108710.0,108700.0,2.78453853]
[1752072073567,0.1536704,108710.0,108700.0,2.8666939]
[1752072073768,0.1536704,108710.0,108700.0,2.78453853]
[1752072074180,0.1536704,108710.0,108700.0,2.86668573]
[1752072074374,0.1536704,108710.0,108700.0,2.92143423]
[1752072074570,0.1536704,108710.0,108700.0,3.21323423]
[1752072075077,0.1536704,108710.0,108700.0,1.91546304]
[1752072075284,0.5602404,108710.0,108700.0,2.22598304]
[1752072075574,0.5602404,108710.0,108700.0,2.53598304]
[1752072075786,0.5602404,108710.0,108700.0,2.03598304]
[1752072076077,0.5144704,108710.0,108700.0,2.03598304]
[1752072077679,0.5144704,108710.0,108700.0,1.69502304]
[1752072077979,0.5803704,108710.0,108700.0,1.99502304]
[1752072078176,0.5959404,108710.0,108700.0,1.99502304]
[1752072078667,0.5959404,108710.0,108700.0,1.32466304]
[1752072078867,0.5959404,108710.0,108700.0,1.67490304]
[1752072079067,0.5959404,108710.0,108700.0,2.01490304]
[1752072079673,0.5959404,108710.0,108700.0,1.29060304]
[1752072079975,0.5959404,108710.0,108700.0,1.62084304]
[1752072080183,0.5959404,108710.0,108700.0,1.64440304]
[1752072080478,0.5959404,108710.0,108700.0,1.38290304]
[1752072080479,0.5633404,108710.0,108700.0,1.38290304]
[1752072081777,0.5633404,108710.0,108700.0,0.65791454]
[1752072081980,0.5633404,108710.0,108700.0,1.32811454]
[1752072082581,0.5633404,108710.0,108700.0,1.38286304]
[1752072082877,0.5144704,108710.0,108700.0,1.38286304]
[1752072083375,0.5144704,108710.0,108700.0,1.41386304]
[1752072083964,0.5144704,108710.0,108700.0,1.78386304]
[1752072084181,0.5144704,108710.0,108700.0,1.73386304]
[1752072084870,0.1536704,108710.0,108700.0,1.42446304]
[1752072085179,0.1536704,108710.0,108700.0,2.11338304]
[1752072085377,0.1536704,108710.0,108700.0,2.22693024]
[1752072086277,0.1536704,108710.0,108700.0,2.17218174]
[1752072086470,0.1536704,108710.0,108700.0,2.46398174]
[1752072086870,0.1536704,108710.0,108700.0,1.79406174]
[1752072087067,0.1836704,108710.0,108700.0,1.42406174]
[1752072087376,0.1836704,108710.0,108700.0,2.40390174]
[1752072087674,0.96078634,108710.0,108700.0,1.32282938]
[1752072087978,1.17473844,108710.0,108700.0,0.38687358]
[1752072088183,1.18111844,108710.0,108700.0,0.14099078]
[1752072088385,0.7812625,108710.0,108700.0,0.05487809]
[1752072088679,1.19757844,108710.0,108700.0,0.23884709]
[1752072089076,1.19757844,108710.0,108700.0,0.05487809]
[1752072089273,1.19757844,108710.0,108700.0,0.23884709]
[1752072089982,1.19757844,108710.0,108700.0,0.23984709]
[1752072090483,1.01362634,108710.0,108700.0,0.184969]
[1752072090684,0.6137704,108710.0,108700.0,0.184969]
[1752072090977,0.6137704,108710.0,108700.0,0.854609]
[1752072091180,0.6137704,108710.0,108700.0,1.32445303]
[1752072091476,0.6137704,108710.0,108700.0,1.30934303]
[1752072091781,0.5909304,108710.0,108700.0,0.90948709]
[1752072091972,0.5909304,108710.0,108700.0,1.30934303]
[1752072093482,0.5909304,108710.0,108700.0,1.33319303]
[1752072094178,0.5909304,108710.0,108700.0,1.27831494]
[1752072097077,0.5744704,108710.0,108700.0,1.25446494]
[1752072098298,0.5744704,108710.0,108700.0,1.30953575]
[1752072099292,0.5744704,108710.0,108700.0,0.63989575]
[1752072099483,0.5744704,108710.0,108700.0,0.90927981]
[1752072102684,0.5744704,108710.0,108700.0,1.30901575]
[1752072103784,0.5744704,108710.0,108700.0,0.90915981]
[1752072103989,0.5744704,108710.0,108700.0,1.30901575]
[1752072104287,0.2136704,108710.0,108700.0,1.30901575]
[1752072104488,0.5744704,108710.0,108700.0,1.30903329]
[1752072104684,0.5744704,108710.0,108700.0,1.30903302]
[1752072104685,0.1836704,108710.0,108700.0,1.30903302]
[1752072104884,0.1836704,108710.0,108700.0,1.31714494]
[1752072105290,0.5444704,108710.0,108700.0,1.31714494]
[1752072106181,0.1836704,108710.0,108700.0,1.31714494]
[1752072106587,0.5444704,108710.0,108700.0,1.31714494]
[1752072107493,0.5444704,108710.0,108700.0,1.69714494]
[1752072108590,0.1836704,108710.0,108700.0,1.77981352]
[1752072108892,0.1836704,108710.0,108700.0,1.77981084]
[1752072109392,0.1836704,108710.0,108700.0,1.77981784]
[1752072109590,0.1836704,108710.0,108700.0,1.69714494]
[1752072109781,0.1536704,108710.0,108700.0,1.78061784]
[1752072109978,0.1536704,108710.0,108700.0,2.01794494]
[1752072110886,0.1536704,108710.0,108700.0,1.81460509]
[1752072111090,0.1536704,108710.0,108700.0,1.47380509]
[1752072111292,0.1536704,108710.0,108700.0,0.80468509]
[1752072111488,0.5144704,108710.0,108700.0,1.43342915]
[1752072111790,0.1536704,108710.0,108700.0,1.69662494]
[1752072112096,0.1536704,108710.0,108700.0,1.80320509]
[1752072112990,0.5144704,108710.0,108700.0,1.04240915]
[1752072113190,0.5772704,108710.0,108700.0,1.35240915]
[1752072113391,0.5772704,108710.0,108700.0,1.35140915]
[1752072113588,0.5772704,108710.0,108700.0,1.35340915]
[1752072113788,0.5772704,108710.0,108700.0,1.32110915]
[1752072113987,0.5772704,108710.0,108700.0,1.01106915]
[1752072114292,0.5772704,108710.0,108700.0,1.01098915]
[1752072114489,0.5772704,108710.0,108700.0,1.12217656]
[1752072114694,0.5772704,108710.0,108700.0,0.98551641]
[1752072117193,0.5772704,108710.0,108700.0,0.31715641]
[1752072117382,0.5772704,108710.0,108700.0,0.875209]
[1752072118488,0.5772704,108710.0,108700.0,0.98539641]
[1752072118890,0.5772704,108710.0,108700.0,0.875209]
[1752072119090,0.5772704,108710.0,108700.0,0.875049]
[1752072119893,0.5772704,108710.0,108700.0,0.98523641]
[1752072120192,0.5772704,108710.0,108700.0,0.855049]
[1752072120394,0.5772704,108710.0,108700.0,0.96523641]
[1752072122902,0.5456704,108710.0,108700.0,0.96523641]
[1752072123203,0.5456704,108710.0,108700.0,1.02793641]
[1752072123798,0.5456704,108710.0,108700.0,0.854809]
[1752072124004,0.5765704,108710.0,108700.0,0.854809]
[1752072124396,0.5765704,108710.0,108700.0,0.96499641]
[1752072124903,0.5765704,108710.0,108700.0,0.96487641]
[1752072125103,0.5456704,108710.0,108700.0,0.96487641]
[1752072125405,0.94552634,108710.0,108700.0,0.93736517]
[1752072125595,0.5765704,108710.0,108700.0,0.93736517]
[1752072125797,0.5765704,108710.0,108700.0,0.96487641]
[1752072126799,0.5765704,108710.0,108700.0,1.28488937]
[1752072127695,0.5456704,108710.0,108700.0,1.31818937]
[1752072127895,0.5456704,108710.0,108700.0,1.34838937]
[1752072128394,0.1848704,108710.0,108700.0,1.70918937]
[1752072128602,0.1266193,108710.0,108700.0,1.68838937]
[1752072128808,0.1266193,108710.0,108700.0,2.12895609]
[1752072128999,0.1266193,108710.0,108700.0,2.01876868]
[1752072129904,0.1266193,108710.0,108700.0,2.12899344]
[1752072130808,0.1266193,108710.0,108700.0,2.42079344]
[1752072131508,0.1266193,108710.0,108700.0,2.44722883]
[1752072132908,0.1266193,108710.0,108700.0,2.10678883]
[1752072133102,0.1266193,108710.0,108700.0,2.30012868]
[1752072133305,0.1266193,108710.0,108700.0,2.10788003]
[1752072133700,0.1266193,108710.0,108700.0,2.16788003]
[1752072133899,0.1266193,108710.0,108700.0,1.80696003]
[1752072134101,0.4874193,108710.0,108700.0,0.41802035]
[1752072134305,0.5201193,108710.0,108700.0,0.220269]
[1752072134507,0.5201193,108710.0,108700.0,1.42492003]
[1752072134705,0.5201193,108710.0,108700.0,1.45702003]
[1752072136003,0.1266193,108710.0,108700.0,1.45702003]
[1752072137607,0.1266193,108710.0,108700.0,1.80702003]
[1752072137805,0.1266193,108710.0,108700.0,1.16070003]
[1752072138004,0.1266193,108710.0,108700.0,1.82762003]
[1752072138506,0.0853651,108710.0,108700.0,2.13762003]
[1752072139212,0.0853651,108710.0,108700.0,1.99986868]
[1752072139604,0.0853651,108710.0,108700.0,2.13762003]
[1752072139804,0.0853651,108710.0,108700.0,1.99986868]
[1752072140006,0.0853651,108710.0,108700.0,1.34906868]
[1752072140201,0.0853651,108710.0,108700.0,1.34890868]
[1752072140406,0.0853651,108710.0,108700.0,1.14990003]
[1752072140716,0.0853651,108710.0,108700.0,1.81666003]
[1752072140909,0.0853651,108710.0,108700.0,1.84742003]
[1752072141105,0.0853651,108710.0,108700.0,2.17742003]
[1752072141306,0.0853651,108710.0,108700.0,1.67886868]
[1752072141614,0.0853651,108710.0,108700.0,1.86936974]
[1752072141813,0.0853651,108710.0,108700.0,1.56344974]